bitfinex-derivatives/quotes_BTCF0:USTF0_20251229
["timestamp","ask_amount","ask_price","bid_price","bid_amount"]
[1767008799149,0.02388322,87675.0,87665.0,0.04426]
[1767008799449,0.0114191,87676.0,87665.0,0.04426]
[1767008799648,0.02388049,87675.0,87665.0,0.04426]
[1767008799942,0.0114203,87667.0,87651.0,0.0114223]
[1767008800138,0.0114199,87670.0,87653.0,0.011422]
[1767008800343,0.0114199,87670.0,87653.0,0.12548545]
[1767008800541,0.0114199,87670.0,87655.0,0.0114217]
[1767008800745,0.01142,87669.0,87652.0,0.1656221]
[1767008800946,0.01142,87669.0,87654.0,0.12550031]
[1767008801149,0.01142,87669.0,87654.0,0.0114219]
[1767008801551,0.01142,87669.0,87655.0,0.11407516]
[1767008803148,0.01142,87669.0,87656.0,0.05716]
[1767008803853,0.01142,87669.0,87657.0,0.11407451]
[1767008806756,0.0114201,87668.0,87657.0,0.11407451]
[1767008809262,0.0114198,87671.0,87657.0,0.11407451]
[1767008810961,0.0114198,87671.0,87658.0,0.0114214]
[1767008811152,0.1542,87680.0,87657.0,0.11407451]
[1767008811352,0.02388014,87679.0,87656.0,0.05716]
[1767008811553,0.02388014,87678.0,87657.0,0.11407126]
[1767008811753,0.0114202,87667.0,87657.0,0.11407126]
[1767008815366,0.0114199,87670.0,87657.0,0.11407126]
[1767008815567,0.0114188,87678.0,87657.0,0.11407126]
[1767008815762,0.0114202,87668.0,87657.0,0.11407126]
[1767008816062,0.00017115,87681.0,87657.0,0.11407126]
[1767008816267,0.0114188,87678.0,87661.0,0.0114209]
[1767008816462,0.00017115,87681.0,87665.0,0.0114204]
[1767008816659,0.00017115,87681.0,87666.0,0.0178515]
[1767008816966,0.0114188,87678.0,87667.0,0.0178515]
[1767008817157,0.0114188,87678.0,87668.0,0.0178515]
[1767008817357,0.0114188,87678.0,87669.0,0.0178515]
[1767008817566,0.0114188,87678.0,87670.0,0.0178515]
[1767008817765,0.0114188,87678.0,87671.0,0.0178515]
[1767008818065,0.0114188,87678.0,87672.0,0.0178515]
[1767008818367,0.0114188,87678.0,87673.0,0.0178515]
[1767008818560,0.0114188,87678.0,87674.0,0.0178515]
[1767008818761,0.0114188,87678.0,87664.0,0.0114206]
[1767008818960,0.0114188,87678.0,87665.0,0.11405824]
[1767008819972,0.01158955,87681.0,87666.0,0.0114203]
[1767008820569,0.0114188,87678.0,87662.0,0.0685807]
[1767008820769,0.0114188,87678.0,87664.0,0.0114205]
[1767008821369,0.00017115,87681.0,87662.0,0.05716]
[1767008822662,0.0114193,87675.0,87662.0,0.05716]
[1767008823465,0.00017115,87681.0,87662.0,0.05716]
[1767008825066,0.0114189,87677.0,87663.0,0.0114207]
[1767008825270,0.00017115,87681.0,87662.0,0.05716]
[1767008826771,0.0114192,87675.0,87662.0,0.05716]
[1767008827362,0.09704,87680.0,87662.0,0.05716]
[1767008828173,0.0114193,87675.0,87662.0,0.05716]
[1767008830467,0.09704,87680.0,87653.0,0.04639]
[1767008830666,0.0114219,87655.0,87643.0,0.02999685]
[1767008830860,0.00017115,87658.0,87635.0,0.1542]
[1767008831055,0.0114227,87648.0,87638.0,0.11406605]
[1767008831260,0.0114227,87648.0,87630.0,0.05716]
[1767008831470,0.011423,87646.0,87630.0,0.05716]
[1767008831671,0.011423,87646.0,87631.0,0.0114248]
[1767008831870,0.09704,87657.0,87633.0,0.0114246]
[1767008832070,0.0114224,87651.0,87633.0,0.0114246]
[1767008832270,0.0114224,87651.0,87634.0,0.11409924]
[1767008832471,0.0114231,87645.0,87634.0,0.11409924]
[1767008832670,0.0114231,87645.0,87617.0,0.0114266]
[1767008832671,0.0114231,87645.0,87631.0,0.05716]
[1767008832871,0.0114234,87643.0,87631.0,0.05716]
[1767008833073,0.0114235,87643.0,87631.0,0.11410054]
[1767008833272,0.00017115,87647.0,87628.0,0.05716]
[1767008833988,0.0114234,87643.0,87628.0,0.05716]
[1767008834273,0.0114234,87643.0,87629.0,0.16856705]
[1767008834473,0.0114237,87641.0,87629.0,0.16856705]
[1767008834870,0.00017115,87647.0,87629.0,0.16856705]
[1767008835170,0.0114244,87635.0,87629.0,0.05446]
[1767008835377,0.09721115,87647.0,87629.0,0.05446]
[1767008836271,0.0114239,87639.0,87629.0,0.05446]
[1767008836973,0.05716,87639.0,87597.0,0.09704]
[1767008837174,0.0114262,87622.0,87598.0,0.1542]
[1767008837367,0.09704,87624.0,87605.0,0.11410575]
[1767008837576,0.09704,87624.0,87601.0,0.0114288]
[1767008837875,0.09704,87624.0,87603.0,0.0114285]
[1767008838066,9.405e-05,87623.0,87603.0,0.0114285]
[1767008838676,9.405e-05,87623.0,87604.0,0.11413831]
[1767008839068,0.01152005,87623.0,87604.0,0.11413831]
[1767008839376,9.405e-05,87623.0,87604.0,0.11413831]
[1767008839778,9.405e-05,87623.0,87604.0,0.12556671]
[1767008839973,9.405e-05,87623.0,87604.0,0.11413831]
[1767008840866,9.405e-05,87623.0,87605.0,0.04836]
[1767008842471,0.02278,87622.0,87607.0,0.011428]
[1767008842675,0.09708,87624.0,87605.0,0.04836]
[1767008843279,0.09708,87624.0,87609.0,0.0114278]
[1767008845378,0.15428,87624.0,87609.0,0.0114278]
[1767008845581,0.15428,87624.0,87612.0,0.0114273]
[1767008846369,0.0114235,87642.0,87618.0,0.0114265]
[1767008846683,0.18579142,87660.0,87623.0,0.0114258]
[1767008846983,0.011423,87646.0,87624.0,0.0114257]
[1767008847179,0.0114233,87644.0,87624.0,0.0114257]
[1767008847383,0.00017115,87643.0,87625.0,0.00017115]
[1767008847582,0.0114235,87642.0,87625.0,0.00017115]
[1767008848377,0.15428,87641.0,87625.0,0.00017115]
[1767008848576,0.18597009,87640.0,87625.0,0.00017115]
[1767008848882,0.09708,87639.0,87625.0,0.00017115]
[1767008849584,0.1085039,87639.0,87625.0,0.00017115]
[1767008850585,0.09708,87639.0,87625.0,0.00017115]
[1767008850887,0.011424,87638.0,87625.0,0.00017115]
[1767008851472,0.09708,87637.0,87625.0,0.00017115]
[1767008851786,0.0572,87636.0,87625.0,0.00017115]
[1767008852375,0.011424,87639.0,87625.0,0.00017115]
[1767008852574,0.0114244,87635.0,87625.0,0.00017115]
[1767008852776,0.15428,87638.0,87625.0,0.00017115]
[1767008852777,0.0114248,87632.0,87625.0,0.00017115]
[1767008852978,0.15428,87638.0,87625.0,5e-08]
[1767008853177,0.0114255,87627.0,87606.0,0.011428]
[1767008853379,0.15428,87626.0,87606.0,0.0114281]
[1767008853579,0.15428,87626.0,87607.0,0.11411421]
[1767008854383,0.00017115,87625.0,87607.0,0.11411421]
[1767008854981,0.00017115,87625.0,87607.0,0.12554211]
[1767008855175,0.00017115,87625.0,87609.0,0.0114277]
[1767008856386,0.0114259,87624.0,87606.0,0.0114281]
[1767008856887,0.00017115,87625.0,87606.0,0.1255612]
[1767008857083,0.01159685,87625.0,87606.0,0.1255612]
[1767008857383,0.01159685,87625.0,87608.0,0.0114278]
[1767008857582,0.00017115,87625.0,87608.0,0.0114278]
[1767008857778,0.00017115,87625.0,87610.0,0.0114276]
[1767008858184,0.05737115,87625.0,87610.0,0.0114276]
[1767008858385,0.0572,87625.0,87610.0,0.18597009]
[1767008858690,0.09708,87627.0,87610.0,0.18597009]
[1767008858691,0.0572,87626.0,87610.0,0.18597009]
[1767008858890,0.0572,87626.0,87612.0,0.0114273]
[1767008859276,0.0572,87626.0,87605.0,0.04836]
[1767008859277,0.0572,87626.0,87610.0,0.00017115]
[1767008859483,0.0572,87626.0,87611.0,0.0114275]
[1767008859986,0.0572,87626.0,87613.0,0.0114272]
[1767008862291,0.0572,87626.0,87615.0,0.0114269]
[1767008862789,0.0572,87626.0,87612.0,0.0114273]
[1767008863591,0.0572,87626.0,87616.0,0.0114268]
[1767008863788,0.0572,87627.0,87616.0,0.0114268]
[1767008864003,0.0572,87627.0,87613.0,0.0114271]
[1767008864384,0.00017115,87628.0,87613.0,0.0114271]
[1767008864688,0.05737115,87628.0,87613.0,0.0114271]
[1767008864884,0.05737115,87628.0,87610.0,0.00017115]
[1767008865084,0.0572,87629.0,87610.0,0.18614124]
[1767008865790,0.0572,87629.0,87614.0,0.011427]
[1767008865987,0.0572,87629.0,87610.0,0.18614124]
[1767008865988,0.0572,87629.0,87616.0,0.0114268]
[1767008867590,0.0572,87629.0,87610.0,0.18614124]
[1767008867785,0.0572,87629.0,87615.0,0.0114269]
[1767008873098,0.0572,87629.0,87616.0,0.0114267]
[1767008873501,0.01159625,87630.0,87616.0,0.0114267]
[1767008874007,0.01159625,87630.0,87613.0,0.0114271]
[1767008874596,0.02430078,87629.0,87613.0,0.0114271]
[1767008874802,0.01159625,87630.0,87615.0,0.011427]
[1767008875004,0.02430279,87629.0,87615.0,0.011427]
[1767008875301,0.03573025,87628.0,87614.0,0.0114271]
[1767008875502,0.00017115,87630.0,87610.0,0.18614124]
[1767008875503,0.02430495,87627.0,87610.0,0.18614124]
[1767008875699,0.00017115,87630.0,87610.0,0.18614124]
[1767008876003,0.02430509,87629.0,87611.0,0.11412658]
[1767008876299,0.02430509,87628.0,87611.0,0.11412658]
[1767008876501,0.00017115,87630.0,87612.0,0.01784624]
[1767008876702,0.0243054,87629.0,87613.0,0.01784624]
[1767008876908,0.0243054,87628.0,87614.0,0.01784624]
[1767008877109,0.00017115,87630.0,87615.0,0.01784624]
[1767008877293,0.02430561,87629.0,87616.0,0.01784624]
[1767008877493,0.02430561,87628.0,87614.0,0.011427]
[1767008877704,0.00017115,87630.0,87614.0,0.011427]
[1767008877904,0.02430564,87629.0,87614.0,0.011427]
[1767008878105,0.02430564,87628.0,87614.0,0.011427]
[1767008878300,0.00017115,87630.0,87614.0,0.011427]
[1767008878500,0.02430574,87629.0,87614.0,0.011427]
[1767008878701,0.02430574,87628.0,87614.0,0.011427]
[1767008878902,0.18614124,87630.0,87614.0,0.011427]
[1767008879194,0.02423645,87629.0,87614.0,0.011427]
[1767008879403,0.0114255,87627.0,87613.0,0.0114272]
[1767008879803,0.19756634,87630.0,87613.0,0.0114272]
[1767008880005,0.0114263,87620.0,87612.0,0.09708]
[1767008880200,0.0114267,87618.0,87612.0,0.09708]
[1767008880801,0.0114266,87619.0,87612.0,0.09708]
[1767008881208,0.0114264,87620.0,87612.0,0.09708]
[1767008882110,0.0114255,87627.0,87605.0,0.04836]
[1767008882303,0.02423752,87626.0,87606.0,0.0572]
[1767008882501,0.0114262,87622.0,87606.0,0.1827625]
[1767008882705,0.0114264,87620.0,87606.0,0.1713344]
[1767008882900,0.19739649,87620.0,87606.0,0.1713344]
[1767008883097,0.18597009,87620.0,87607.0,0.011428]
[1767008883904,0.011426,87623.0,87607.0,0.011428]
[1767008884507,0.0114262,87621.0,87607.0,0.011428]
[1767008884705,0.0686259,87624.0,87607.0,0.011428]
[1767008884898,0.0114262,87622.0,87607.0,0.011428]
[1767008886012,0.0114266,87618.0,87606.0,0.0572]
[1767008886310,0.0114265,87619.0,87607.0,0.11413635]
[1767008886517,0.18597009,87620.0,87607.0,0.11413635]
[1767008886897,0.18597009,87617.0,87605.0,0.03882812]
[1767008887110,0.18597009,87617.0,87587.0,0.0572]
[1767008887111,0.0114277,87610.0,87587.0,0.0572]
[1767008887311,0.19739779,87610.0,87594.0,0.0114297]
[1767008887904,0.0572,87609.0,87594.0,0.0114297]
[1767008888105,0.0114283,87606.0,87589.0,0.0114303]
[1767008888408,0.0114283,87606.0,87589.0,0.1255875]
[1767008888610,0.0114283,87606.0,87591.0,0.0114301]
[1767008888914,0.0572,87609.0,87583.0,0.06157577]
[1767008888915,0.0572,87609.0,87590.0,0.0572]
[1767008889112,0.0114283,87606.0,87590.0,0.0572]
[1767008889412,0.0114283,87606.0,87590.0,0.0686302]
[1767008889806,0.0572,87609.0,87592.0,0.0114299]
[1767008890710,0.0572,87609.0,87594.0,0.0114297]
[1767008890910,0.0572,87609.0,87590.0,0.24317009]
[1767008891109,0.00017115,87610.0,87602.0,0.0114286]
[1767008891311,0.0572,87618.0,87609.0,0.0114277]
[1767008891610,0.0572,87618.0,87599.0,0.24317009]
[1767008891611,0.0572,87618.0,87606.0,0.0114281]
[1767008892114,0.15428,87623.0,87606.0,0.0114281]
[1767008892316,0.03562405,87622.0,87606.0,0.01159925]
[1767008892613,0.02419795,87621.0,87606.0,0.01159925]
[1767008892814,0.02419795,87620.0,87606.0,0.01159925]
[1767008893012,0.0114261,87622.0,87606.0,0.01159925]
[1767008893210,0.02419715,87621.0,87606.0,0.01159925]
[1767008893408,0.02419715,87620.0,87606.0,0.01159925]
[1767008893608,0.0114261,87622.0,87606.0,0.01159925]
[1767008893810,0.02419587,87621.0,87606.0,0.01159925]
[1767008894018,0.21016596,87620.0,87606.0,0.01159925]
[1767008894315,0.18597009,87620.0,87606.0,0.01159925]
[1767008894917,0.0686261,87622.0,87606.0,0.01159925]
[1767008895106,0.02419497,87621.0,87606.0,0.01159925]
[1767008895305,0.21016506,87620.0,87606.0,0.01159925]
[1767008895506,0.19739649,87620.0,87606.0,0.00017115]
[1767008896720,0.0572,87621.0,87606.0,0.01159925]
[1767008897018,0.02419899,87620.0,87606.0,0.01159925]
[1767008897219,0.0572,87621.0,87606.0,0.01159925]
[1767008897519,0.02419933,87620.0,87606.0,0.01159925]
[1767008897728,0.0572,87621.0,87606.0,0.01159925]
[1767008898019,0.02420088,87620.0,87606.0,0.01159925]
[1767008898208,0.0572,87621.0,87606.0,0.01159925]
[1767008898407,0.02420308,87620.0,87606.0,0.01159925]
[1767008898711,0.0572,87621.0,87606.0,0.01159925]
[1767008898910,0.02420308,87620.0,87606.0,0.01159925]
[1767008899202,0.0572,87621.0,87606.0,0.01159925]
[1767008899404,0.0242034,87620.0,87606.0,0.01159925]
[1767008899608,0.0572,87621.0,87606.0,0.01159925]
[1767008899818,0.02420251,87620.0,87606.0,0.01159925]
[1767008900019,0.0572,87621.0,87606.0,0.01159925]
[1767008900219,0.02420253,87620.0,87606.0,0.00017115]
[1767008900416,0.0114264,87620.0,87606.0,0.00017115]
[1767008900617,0.18597009,87620.0,87606.0,0.00017115]
[1767008900916,0.18597009,87620.0,87607.0,0.011428]
[1767008901217,0.02420381,87619.0,87607.0,0.011428]
[1767008901420,0.0572,87621.0,87607.0,0.011428]
[1767008901720,0.02420376,87620.0,87607.0,0.011428]
[1767008901906,0.02420376,87619.0,87607.0,0.011428]
[1767008902110,0.0572,87621.0,87607.0,0.011428]
[1767008902321,0.02420422,87620.0,87607.0,0.011428]
[1767008902619,0.02420422,87619.0,87607.0,0.011428]
[1767008902822,0.0572,87621.0,87607.0,0.011428]
[1767008903018,0.02420451,87620.0,87606.0,0.00017115]
[1767008903212,0.09708,87636.0,87610.0,0.18597009]
[1767008903417,0.08140866,87635.0,87620.0,0.0114263]
[1767008903619,0.011423,87646.0,87628.0,0.0114252]
[1767008903816,0.0114235,87642.0,87624.0,0.0114257]
[1767008904018,0.0114238,87640.0,87622.0,0.0572]
[1767008904217,0.00017115,87640.0,87623.0,0.0114259]
[1767008904718,0.00017115,87640.0,87624.0,0.01782282]
[1767008905017,1.15e-06,87640.0,87625.0,0.01782282]
[1767008905217,0.2024,87688.0,87630.0,0.37194018]
[1767008905218,0.03412,87663.0,87630.0,0.37194018]
[1767008905525,0.0114213,87659.0,87641.0,0.0114236]
[1767008905725,0.0114213,87659.0,87642.0,0.01782282]
[1767008905928,0.0114213,87659.0,87643.0,0.01782282]
[1767008906125,0.0114213,87659.0,87644.0,0.01782282]
[1767008906425,0.0114213,87659.0,87645.0,0.01782282]
[1767008906626,0.0113713,87659.0,87646.0,0.01782282]
[1767008906817,0.0113713,87659.0,87647.0,0.01782282]
[1767008907018,0.0113713,87659.0,87648.0,0.01782282]
[1767008907218,0.0113713,87659.0,87649.0,0.01782282]
[1767008907426,0.0113713,87659.0,87650.0,0.01782282]
[1767008907626,0.0113713,87659.0,87651.0,0.01782282]
[1767008907920,0.0113713,87659.0,87652.0,0.01782282]
[1767008908127,0.00017115,87660.0,87653.0,0.01782282]
[1767008908316,0.00017115,87660.0,87654.0,2e-08]
[1767008908317,0.0114215,87658.0,87654.0,2e-08]
[1767008908518,0.0114215,87658.0,87655.0,2e-08]
[1767008908719,0.0114215,87658.0,87645.0,0.04888]
[1767008911825,0.00017115,87660.0,87645.0,0.04888]
[1767008912225,0.0114218,87656.0,87645.0,0.04888]
[1767008919744,0.0114213,87659.0,87645.0,0.04888]
[1767008920045,0.03412,87663.0,87645.0,0.04888]
[1767008920245,0.0114213,87659.0,87645.0,0.04888]
[1767008920435,0.03412,87663.0,87645.0,0.04888]
[1767008920636,0.03412,87663.0,87651.0,0.0114222]
[1767008921047,0.03412,87663.0,87648.0,0.0114226]
[1767008922049,0.10867155,87666.0,87650.0,0.0114224]
[1767008922546,0.011421,87662.0,87649.0,0.21116297]
[1767008922849,0.011421,87662.0,87649.0,0.09708]
[1767008925145,0.0114206,87665.0,87649.0,0.1085025]
[1767008925341,0.09725115,87666.0,87649.0,0.1085025]
[1767008925547,0.0114208,87663.0,87649.0,0.1085025]
[1767008925748,0.0114208,87663.0,87650.0,0.05713]
[1767008925945,0.09725115,87666.0,87650.0,0.05713]
[1767008927050,0.0114208,87663.0,87650.0,0.05713]
[1767008928454,0.011421,87661.0,87650.0,0.05713]
[1767008929554,0.00017115,87666.0,87650.0,0.05713]
[1767008931256,0.0572,87671.0,87650.0,0.05713]
[1767008931446,0.02382716,87670.0,87650.0,0.05713]
[1767008931647,0.0572,87671.0,87650.0,0.05713]
[1767008931954,0.02382893,87670.0,87650.0,0.05713]
[1767008932155,0.00017115,87669.0,87650.0,0.05713]
[1767008932354,0.02385012,87668.0,87650.0,0.05713]
[1767008932657,0.0114205,87666.0,87651.0,0.0114223]
[1767008932857,0.0114205,87666.0,87650.0,0.05713]
[1767008933060,0.0114206,87664.0,87650.0,0.05713]
[1767008933254,0.0114209,87662.0,87650.0,0.05713]
[1767008936363,0.0114206,87665.0,87653.0,0.011422]
[1767008936550,0.0114204,87666.0,87654.0,0.05716]
[1767008936751,0.02389275,87665.0,87654.0,0.05716]
[1767008936961,0.0114204,87666.0,87654.0,0.05716]
[1767008937166,0.02389283,87665.0,87654.0,0.05716]
[1767008937363,0.0114204,87666.0,87654.0,0.05716]
[1767008937564,4e-07,87666.0,87654.0,0.05716]
[1767008938252,0.0114208,87666.0,87654.0,0.05716]
[1767008938664,4e-07,87666.0,87655.0,0.0114218]
[1767008939658,0.0572,87671.0,87655.0,0.0114218]
[1767008940171,0.0114199,87670.0,87655.0,0.0114218]
[1767008940370,0.0572,87671.0,87654.0,0.05716]
[1767008940772,0.05731372,87671.0,87654.0,0.05716]
[1767008940973,0.0114205,87665.0,87654.0,0.05716]
[1767008941369,0.0114208,87663.0,87654.0,0.05716]
[1767008942370,8e-07,87663.0,87654.0,0.05716]
[1767008944072,8e-07,87663.0,87657.0,0.0114215]
[1767008944275,0.1542,87677.0,87662.0,0.0114208]
[1767008944476,0.06111172,87690.0,87665.0,0.0114204]
[1767008944671,0.1542,87689.0,87666.0,0.01785207]
[1767008944969,0.1542,87689.0,87668.0,0.0114201]
[1767008945273,0.0114183,87682.0,87670.0,0.00017115]
[1767008945472,0.0114183,87682.0,87671.0,0.01785207]
[1767008945673,0.0114183,87682.0,87670.0,0.00017115]
[1767008945674,0.0114183,87682.0,87672.0,0.01785207]
[1767008945874,0.0114179,87685.0,87673.0,0.01785207]
[1767008946074,0.0114179,87685.0,87674.0,0.01785207]
[1767008946277,0.0114179,87685.0,87675.0,0.01785207]
[1767008946479,0.0114179,87685.0,87676.0,0.01785207]
[1767008946772,0.0114179,87685.0,87677.0,0.01785207]
[1767008946969,0.0114179,87685.0,87678.0,0.01785207]
[1767008947171,0.05716,87684.0,87679.0,0.01785207]
[1767008947369,0.05716,87684.0,87680.0,0.01785207]
[1767008947564,0.05716,87684.0,87681.0,0.01785207]
[1767008947776,0.05716,87684.0,87671.0,0.0114196]
[1767008948478,0.05716,87684.0,87670.0,0.00017115]
[1767008949471,0.0685781,87684.0,87670.0,0.01159095]
[1767008949772,0.0114183,87682.0,87670.0,0.00017115]
[1767008949979,0.0114191,87676.0,87670.0,5e-08]
[1767008950478,0.05716,87685.0,87670.0,5e-08]
[1767008950679,0.0114188,87679.0,87670.0,5e-08]
[1767008951177,0.0114185,87680.0,87670.0,5e-08]
[1767008952078,0.0114189,87678.0,87670.0,5e-08]
[1767008953770,0.0114185,87681.0,87670.0,5e-08]
[1767008954181,0.0114183,87682.0,87670.0,5e-08]
[1767008955580,0.0001711,87683.0,87670.0,5e-08]
[1767008955774,0.05716,87689.0,87670.0,5e-08]
[1767008955980,0.0114178,87686.0,87670.0,5e-08]
[1767008956178,0.05716,87689.0,87670.0,5e-08]
[1767008958175,0.011418,87685.0,87670.0,5e-08]
[1767008958674,0.05716,87689.0,87670.0,5e-08]
[1767008959281,0.011419,87677.0,87670.0,5e-08]
[1767008959584,0.011419,87677.0,87664.0,0.05716]
[1767008959585,0.011419,87677.0,87666.0,0.09704]
[1767008960684,0.0114186,87680.0,87666.0,0.09704]
[1767008961387,0.05716,87689.0,87666.0,0.09704]
[1767008962382,0.0114187,87679.0,87666.0,0.09704]
[1767008964590,0.0114187,87679.0,87664.0,0.05716]
[1767008964782,0.0685775,87689.0,87671.0,0.0114196]
[1767008964983,0.1542,87696.0,87669.0,0.0114199]
[1767008965185,0.0114175,87688.0,87672.0,0.0114194]
[1767008965380,0.0114179,87685.0,87673.0,0.1542]
[1767008965881,0.0114179,87685.0,87674.0,0.11406085]
[1767008968393,0.0114176,87688.0,87674.0,0.11406085]
[1767008971083,0.0114167,87695.0,87674.0,0.11406085]
[1767008971296,0.011418,87685.0,87674.0,0.11406085]
[1767008973298,0.0114169,87693.0,87674.0,0.12548015]
[1767008974591,0.09704,87696.0,87674.0,0.11406085]
[1767008975302,0.011417,87692.0,87675.0,0.0114191]
[1767008975499,0.0114173,87690.0,87675.0,0.0114191]
[1767008975885,0.0114169,87693.0,87677.0,0.0114189]
[1767008977096,0.0114169,87693.0,87673.0,0.1542]
[1767008977297,0.09704,87696.0,87675.0,0.0114191]
[1767008977699,0.18572225,87685.0,87668.0,0.01142]
[1767008977898,0.18572225,87680.0,87669.0,0.09704]
[1767008978701,0.0114178,87686.0,87669.0,0.1084599]
[1767008979592,0.0114181,87684.0,87669.0,0.1084599]
[1767008979792,0.0114181,87684.0,87669.0,0.09704]
[1767008980901,0.0114183,87682.0,87669.0,0.09704]
[1767008981701,0.18572225,87680.0,87669.0,0.09704]
[1767008981902,0.0114183,87682.0,87670.0,0.0462]
[1767008982203,0.18572225,87680.0,87670.0,0.0462]
[1767008982399,0.0114182,87683.0,87670.0,0.0462]
[1767008983004,0.1656178,87686.0,87670.0,0.0462]
[1767008983905,0.1542,87686.0,87670.0,0.0462]
[1767008984505,0.1542,87686.0,87671.0,0.0114196]
[1767008985596,0.1542,87686.0,87670.0,0.0462]
[1767008985795,0.1542,87686.0,87671.0,0.05716]
[1767008986203,0.1542,87686.0,87671.0,0.0685796]
[1767008987302,0.1542,87686.0,87671.0,0.06322792]
[1767008988402,0.1656178,87686.0,87671.0,0.05716]
[1767008988604,0.0114181,87684.0,87671.0,0.05716]
[1767008991307,0.1542,87686.0,87671.0,0.05716]
[1767008991607,0.0114179,87685.0,87671.0,0.05716]
[1767008991797,0.0685779,87685.0,87671.0,0.05716]
[1767008994108,0.0114183,87682.0,87671.0,0.05716]
[1767008994307,0.068578,87685.0,87671.0,0.05716]
[1767008995408,0.0114182,87683.0,87671.0,0.05716]
[1767008998613,0.05716,87685.0,87671.0,0.05716]
[1767008998812,0.011418,87684.0,87671.0,0.05716]
[1767008999012,0.02390046,87683.0,87671.0,0.05716]
[1767008999208,0.011418,87684.0,87671.0,0.05716]
[1767008999409,0.02390062,87683.0,87671.0,0.05716]
[1767008999605,0.05,97861.0,87671.0,0.05716]
[1767008999606,0.18572225,87690.0,87671.0,0.05716]
[1767008999809,0.08105963,87689.0,87678.0,0.0114187]
[1767009000003,0.02389963,87688.0,87671.0,0.05716]
[1767009000204,0.02389963,87687.0,87671.0,0.05716]
[1767009000408,0.02389963,87686.0,87671.0,0.05716]
[1767009000614,0.02389963,87685.0,87671.0,0.05716]
[1767009000814,0.02389963,87684.0,87671.0,0.05716]
[1767009001014,0.0114178,87686.0,87671.0,0.05716]
[1767009001212,0.0114184,87681.0,87671.0,0.05716]
[1767009002012,0.0114181,87684.0,87671.0,0.05716]
[1767009002209,0.02389947,87683.0,87671.0,0.05716]
[1767009002411,0.0114193,87675.0,87657.0,0.05716]
[1767009002618,0.18572225,87673.0,87657.0,0.05716]
[1767009002914,0.05716,87674.0,87657.0,0.05716]
[1767009002915,0.0114201,87668.0,87657.0,0.05716]
[1767009003213,0.18572225,87670.0,87653.0,0.05716]
[1767009003609,0.1858934,87670.0,87653.0,0.05733115]
[1767009004414,0.1858934,87670.0,87655.0,0.0114217]
[1767009006008,0.1973133,87670.0,87654.0,0.04026]
[1767009007910,0.1858934,87670.0,87656.0,0.0114216]
[1767009008211,0.1858934,87670.0,87657.0,0.0114214]
[1767009009015,0.1858934,87670.0,87658.0,0.01785258]
[1767009009222,0.1858934,87670.0,87659.0,0.01785258]
[1767009009416,0.1858934,87670.0,87657.0,0.0114214]
[1767009009417,0.1858934,87670.0,87660.0,0.01785258]
[1767009009615,0.1858934,87670.0,87661.0,0.01785258]
[1767009009820,0.00017115,87670.0,87662.0,0.01785258]
[1767009010017,0.00017115,87670.0,87657.0,0.0114214]
[1767009011414,0.00017115,87670.0,87654.0,0.0516819]
[1767009012718,0.1973133,87670.0,87654.0,0.04026]
[1767009012920,0.01159105,87670.0,87654.0,0.04026]
[1767009013118,0.1973133,87670.0,87654.0,0.04026]
[1767009014323,0.0114201,87668.0,87654.0,0.04026]
[1767009017621,0.1858934,87670.0,87654.0,0.04026]
[1767009019518,0.0114203,87667.0,87654.0,0.04026]
[1767009020028,0.1858934,87670.0,87654.0,0.04026]
[1767009021029,0.0114202,87667.0,87654.0,0.04026]
[1767009022527,0.0114201,87668.0,87654.0,0.04026]
[1767009022926,0.1858934,87670.0,87654.0,0.0516818]
[1767009023327,0.00017115,87670.0,87654.0,0.0516818]
[1767009023529,0.0114201,87668.0,87654.0,0.04026]
[1767009024630,0.1858934,87670.0,87654.0,0.04026]
[1767009024836,0.0114203,87667.0,87654.0,0.04026]
[1767009029730,0.01142,87669.0,87655.0,0.0114218]
[1767009029926,0.01142,87669.0,87653.0,0.00017115]
[1767009030521,0.00017115,87670.0,87653.0,0.00017115]
[1767009030522,0.0114203,87667.0,87653.0,0.00017115]
[1767009030720,0.01159105,87670.0,87653.0,0.00017115]
[1767009031933,0.01159105,87670.0,87654.0,0.0114219]
[1767009032924,0.0114201,87668.0,87655.0,0.05218]
[1767009034824,0.00017115,87670.0,87655.0,0.0636017]
[1767009035025,0.02396535,87669.0,87655.0,0.0636017]
[1767009035225,0.00017115,87670.0,87655.0,0.0636017]
[1767009035428,0.02396566,87669.0,87655.0,0.0636017]
[1767009035733,0.00017115,87670.0,87655.0,0.0636017]
[1767009036035,0.02396568,87669.0,87655.0,0.0636017]
[1767009036233,0.00017115,87670.0,87655.0,0.0636017]
[1767009036435,0.06111172,87692.0,87657.0,0.0114215]
[1767009036634,0.0114197,87671.0,87655.0,0.05218]
[1767009037226,0.0114197,87671.0,87656.0,0.0114216]
[1767009038537,0.0114197,87671.0,87658.0,0.0114214]
[1767009039129,0.01142,87669.0,87655.0,0.0636017]
[1767009040141,0.05716,87672.0,87655.0,0.05218]
[1767009040328,0.0114199,87670.0,87655.0,0.05218]
[1767009040530,0.0114202,87668.0,87655.0,0.05218]
[1767009041435,0.05716,87674.0,87656.0,0.11407516]
[1767009041739,0.02397384,87673.0,87656.0,0.11407516]
[1767009041933,0.02397384,87672.0,87657.0,0.01785289]
[1767009042134,0.05716,87674.0,87658.0,0.01785289]
[1767009042135,0.02397384,87671.0,87658.0,0.01785289]
[1767009042434,0.0114204,87666.0,87659.0,0.01785289]
[1767009042636,0.0114204,87666.0,87660.0,0.01785289]
[1767009042840,0.0114204,87666.0,87661.0,0.01785289]
[1767009043141,0.0114204,87666.0,87655.0,0.05218]
[1767009043438,0.0114204,87666.0,87656.0,0.11407321]
[1767009045537,0.0114201,87669.0,87656.0,0.11407321]
[1767009047041,0.0114202,87667.0,87656.0,0.11407321]
[1767009048734,0.0114199,87670.0,87656.0,0.11407321]
[1767009048934,0.0114201,87668.0,87656.0,0.11407321]
[1767009054249,0.0114201,87668.0,87657.0,0.05716]
[1767009055748,0.0114198,87671.0,87657.0,0.05716]
[1767009055952,0.02396477,87670.0,87658.0,0.01785289]
[1767009056144,0.02396477,87669.0,87659.0,0.01785289]
[1767009056449,0.01142,87670.0,87660.0,0.01785289]
[1767009056648,0.02396503,87669.0,87661.0,0.01785289]
[1767009056848,0.0114197,87671.0,87662.0,0.01785289]
[1767009057036,0.02396503,87670.0,87663.0,0.01785289]
[1767009057239,0.03538503,87669.0,87664.0,0.01785289]
[1767009057436,0.0114197,87672.0,87665.0,0.01785289]
[1767009057644,0.0114198,87670.0,87666.0,0.01785289]
[1767009057840,0.02396521,87669.0,87667.0,9e-08]